[Event "*** Titled Tuesday Blitz"]
[Site "Chess.com"]
[Date "2019.08.06"]
[Round "10"]
[White "PNEPaul"]
[Black "Walter_White_Poland"]
[Result "0-1"]
[WhiteElo "1748"]
[BlackElo "2285"]
[TimeControl "180+2"]
[EndTime "15:22:40 PDT"]
[Termination "Walter_White_Poland won by resignation"]

1. e4 {[%clk 0:03:01.9]} 1... e5 {[%clk 0:03:00.8]} 2. Nf3 {[%clk 0:03:02.3]}
2... Nc6 {[%clk 0:03:01.9]} 3. Bc4 {[%clk 0:03:03.2]} 3... Nf6 {[%clk
0:03:02.2]} 4. Ng5 {[%clk 0:03:03.1]} 4... d5 {[%clk 0:03:03.1]} 5. exd5 {[%clk
0:03:03.8]} 5... Na5 {[%clk 0:03:04]} 6. d3 {[%clk 0:03:04.8]} 6... h6 {[%clk
0:03:00.1]} 7. Nf3 {[%clk 0:03:05.7]} 7... e4 {[%clk 0:03:00.9]} 8. dxe4 {[%clk
0:03:06.6]} 8... Nxc4 {[%clk 0:03:00.2]} 9. Qd4 {[%clk 0:03:02.1]} 9... b5
{[%clk 0:02:40.4]} 10. O-O {[%clk 0:02:30]} 10... Bg4 {[%clk 0:01:24]} 11. Nbd2
{[%clk 0:01:55.8]} 11... Nxd2 {[%clk 0:01:17.2]} 12. Nxd2 {[%clk 0:01:51]} 12...
c5 {[%clk 0:01:14.6]} 13. Qe5+ {[%clk 0:01:45.3]} 13... Qe7 {[%clk 0:01:13.2]}
14. Qg3 {[%clk 0:01:34.4]} 14... Bd7 {[%clk 0:00:50.7]} 15. Re1 {[%clk
0:01:21.6]} 15... Nh5 {[%clk 0:00:46.6]} 16. Qe3 {[%clk 0:01:15.7]} 16... Qg5
{[%clk 0:00:36.1]} 17. f4 {[%clk 0:01:06.9]} 17... Nxf4 {[%clk 0:00:31.9]} 18.
Qg3 {[%clk 0:00:53.7]} 18... Qxg3 {[%clk 0:00:31.8]} 19. hxg3 {[%clk 0:00:54.2]}
19... Ng6 {[%clk 0:00:32.6]} 20. e5 {[%clk 0:00:53.2]} 20... Bf5 {[%clk
0:00:33.7]} 21. Nf3 {[%clk 0:00:53.5]} 21... Bxc2 {[%clk 0:00:33.2]} 22. Bf4
{[%clk 0:00:52.4]} 22... Nxf4 {[%clk 0:00:29.9]} 23. gxf4 {[%clk 0:00:52.6]}
23... c4 {[%clk 0:00:31.2]} 24. Rac1 {[%clk 0:00:52.4]} 24... Bd3 {[%clk
0:00:31.1]} 25. b3 {[%clk 0:00:47.1]} 25... Bc5+ {[%clk 0:00:29.1]} 26. Kh2
{[%clk 0:00:48]} 26... O-O-O {[%clk 0:00:29.4]} 27. bxc4 {[%clk 0:00:48.6]}
27... bxc4 {[%clk 0:00:28.9]} 28. Red1 {[%clk 0:00:42.4]} 28... Rxd5 {[%clk
0:00:28.3]} 29. Rxd3 {[%clk 0:00:38.3]} 29... cxd3 {[%clk 0:00:28.2]} 30. Nd2
{[%clk 0:00:36.6]} 30... Kb8 {[%clk 0:00:28.3]} 31. Rb1+ {[%clk 0:00:37]} 31...
Bb6 {[%clk 0:00:29]} 32. a4 {[%clk 0:00:36.7]} 32... Ka8 {[%clk 0:00:28.4]} 33.
Nc4 {[%clk 0:00:36.7]} 33... d2 {[%clk 0:00:27.6]} 34. Rd1 {[%clk 0:00:36.2]}
34... Rc8 {[%clk 0:00:25.5]} 35. Rxd2 {[%clk 0:00:31.3]} 35... Rxd2 {[%clk
0:00:25.9]} 36. Nxd2 {[%clk 0:00:32.4]} 36... Rd8 {[%clk 0:00:25.2]} 0-1

[Event "*** Titled Tuesday Blitz"]
[Site "Chess.com"]
[Date "2019.08.06"]
[Round "10"]
[White "novocane"]
[Black "norwaytoadog"]
[Result "0-1"]
[WhiteElo "2162"]
[BlackElo "2245"]
[TimeControl "180+2"]
[EndTime "15:22:51 PDT"]
[Termination "norwaytoadog won by resignation"]

1. d4 {[%clk 0:03:01.7]} 1... Nf6 {[%clk 0:03:00.2]} 2. c4 {[%clk 0:03:02.2]}
2... e6 {[%clk 0:03:01.5]} 3. Nc3 {[%clk 0:03:03.3]} 3... Bb4 {[%clk 0:03:02.5]}
4. e3 {[%clk 0:03:04.7]} 4... O-O {[%clk 0:02:59.2]} 5. Ne2 {[%clk 0:03:05.4]}
5... Re8 {[%clk 0:02:59.3]} 6. a3 {[%clk 0:03:04.7]} 6... Bf8 {[%clk 0:02:59.6]}
7. e4 {[%clk 0:03:06]} 7... d5 {[%clk 0:02:32.8]} 8. e5 {[%clk 0:03:03.5]} 8...
Ne4 {[%clk 0:02:32.5]} 9. Nxe4 {[%clk 0:03:01.9]} 9... dxe4 {[%clk 0:02:33.1]}
10. Ng3 {[%clk 0:03:02.7]} 10... c5 {[%clk 0:02:27]} 11. dxc5 {[%clk 0:02:46.2]}
11... Qc7 {[%clk 0:02:24]} 12. Bf4 {[%clk 0:02:36.2]} 12... f5 {[%clk
0:01:49.5]} 13. b4 {[%clk 0:01:39.3]} 13... a5 {[%clk 0:01:41.8]} 14. Be2 {[%clk
0:01:40]} 14... Nc6 {[%clk 0:01:32.6]} 15. O-O {[%clk 0:01:07.7]} 15... axb4
{[%clk 0:01:17.4]} 16. axb4 {[%clk 0:01:08.4]} 16... Rxa1 {[%clk 0:01:18.2]} 17.
Qxa1 {[%clk 0:01:10.3]} 17... Nxb4 {[%clk 0:01:19.5]} 18. Rb1 {[%clk 0:00:29.1]}
18... Bxc5 {[%clk 0:01:17.7]} 19. Rxb4 {[%clk 0:00:24.6]} 19... Bxf2+ {[%clk
0:01:04.6]} 20. Kf1 {[%clk 0:00:14]} 20... Bc5 {[%clk 0:00:53.9]} 21. Rb5 {[%clk
0:00:14.9]} 21... Rd8 {[%clk 0:00:52.5]} 22. h4 {[%clk 0:00:07.1]} 22... h6
{[%clk 0:00:48.3]} 23. h5 {[%clk 0:00:07.7]} 23... b6 {[%clk 0:00:43.7]} 24. Rb1
{[%clk 0:00:08.4]} 24... Qe7 {[%clk 0:00:41.7]} 25. Rd1 {[%clk 0:00:09.1]} 25...
Rxd1+ {[%clk 0:00:35.4]} 26. Qxd1 {[%clk 0:00:09.7]} 26... Qh4 {[%clk
0:00:30.3]} 27. Qd2 {[%clk 0:00:08.8]} 27... Ba6 {[%clk 0:00:23.4]} 28. Qd7
{[%clk 0:00:04.5]} 28... Qxf4+ {[%clk 0:00:21.2]} 0-1

[Event "*** Titled Tuesday Blitz"]
[Site "Chess.com"]
[Date "2019.08.06"]
[Round "10"]
[White "GMHess"]
[Black "OparinGrigoriy"]
[Result "1-0"]
[WhiteElo "2813"]
[BlackElo "2970"]
[TimeControl "180+2"]
[EndTime "15:22:53 PDT"]
[Termination "GMHess won by resignation"]

1. d4 {[%clk 0:03:01.9]} 1... Nf6 {[%clk 0:02:55.5]} 2. c4 {[%clk 0:03:02.7]}
2... e6 {[%clk 0:02:57.4]} 3. Nc3 {[%clk 0:03:00.2]} 3... Bb4 {[%clk 0:02:57.7]}
4. Qc2 {[%clk 0:03:01.7]} 4... d6 {[%clk 0:02:58.7]} 5. Nf3 {[%clk 0:02:52.3]}
5... O-O {[%clk 0:02:59.2]} 6. a3 {[%clk 0:02:53.3]} 6... Bxc3+ {[%clk
0:03:00.2]} 7. Qxc3 {[%clk 0:02:55.2]} 7... b6 {[%clk 0:03:00.1]} 8. g3 {[%clk
0:02:52.5]} 8... Bb7 {[%clk 0:03:02]} 9. Bg2 {[%clk 0:02:54]} 9... Nbd7 {[%clk
0:03:03.9]} 10. O-O {[%clk 0:02:54.9]} 10... a5 {[%clk 0:03:05.4]} 11. b3 {[%clk
0:02:46]} 11... Qe7 {[%clk 0:03:06.7]} 12. Bb2 {[%clk 0:02:46.5]} 12... Rfc8
{[%clk 0:03:07.1]} 13. Rfd1 {[%clk 0:02:30.9]} 13... h6 {[%clk 0:03:07.7]} 14.
d5 {[%clk 0:02:25.3]} 14... exd5 {[%clk 0:03:08.8]} 15. cxd5 {[%clk 0:02:21.4]}
15... Nc5 {[%clk 0:03:06.3]} 16. Nd4 {[%clk 0:02:11.8]} 16... Qe5 {[%clk
0:02:44]} 17. f4 {[%clk 0:01:40.7]} 17... Qh5 {[%clk 0:02:43.3]} 18. Bf3 {[%clk
0:01:40.4]} 18... Qg6 {[%clk 0:02:44.7]} 19. Nc6 {[%clk 0:01:16]} 19... Re8
{[%clk 0:02:41.5]} 20. Rd4 {[%clk 0:01:03.2]} 20... Nfe4 {[%clk 0:02:41.8]} 21.
Qc2 {[%clk 0:00:45.7]} 21... f5 {[%clk 0:02:40.6]} 22. Kg2 {[%clk 0:00:38.8]}
22... Nf6 {[%clk 0:02:36]} 23. b4 {[%clk 0:00:32]} 23... axb4 {[%clk 0:02:37.9]}
24. axb4 {[%clk 0:00:33.9]} 24... Rxa1 {[%clk 0:02:39.4]} 25. Bxa1 {[%clk
0:00:34.5]} 25... Nce4 {[%clk 0:02:41]} 26. Rd3 {[%clk 0:00:27.5]} 26... Ba6
{[%clk 0:02:38.8]} 27. Ra3 {[%clk 0:00:23.7]} 27... Bb7 {[%clk 0:02:21.3]} 28.
Ra7 {[%clk 0:00:19.2]} 28... Bxc6 {[%clk 0:02:21.8]} 29. Qxc6 {[%clk 0:00:21.1]}
29... Nd2 {[%clk 0:02:17.9]} 30. Bxf6 {[%clk 0:00:18.6]} 30... Nxf3 {[%clk
0:02:19.3]} 31. exf3 {[%clk 0:00:14.8]} 31... Re2+ {[%clk 0:02:12.5]} 32. Kf1
{[%clk 0:00:15.2]} 32... Rxh2 {[%clk 0:02:13.9]} 33. Bh4 {[%clk 0:00:11]} 33...
Qh5 {[%clk 0:02:10]} 34. Qc3 {[%clk 0:00:12.2]} 34... Qe8 {[%clk 0:02:08.6]} 35.
Qd3 {[%clk 0:00:06.8]} 35... Rh1+ {[%clk 0:02:08.7]} 36. Kg2 {[%clk 0:00:06.6]}
36... Re1 {[%clk 0:02:05.5]} 37. Ra2 {[%clk 0:00:07.6]} 37... g6 {[%clk
0:01:54.1]} 38. Rf2 {[%clk 0:00:03.7]} 38... Kf7 {[%clk 0:01:54.8]} 39. Qc3
{[%clk 0:00:04.6]} 39... g5 {[%clk 0:01:45.6]} 40. fxg5 {[%clk 0:00:05.3]} 40...
hxg5 {[%clk 0:01:46.8]} 41. Bxg5 {[%clk 0:00:06.9]} 41... Qe5 {[%clk 0:01:43.4]}
42. Qxe5 {[%clk 0:00:06.2]} 42... dxe5 {[%clk 0:01:45]} 43. Rc2 {[%clk
0:00:07.1]} 43... Kg6 {[%clk 0:01:46.5]} 44. Bd8 {[%clk 0:00:07.9]} 44... Rd1
{[%clk 0:01:47.2]} 45. Bxc7 {[%clk 0:00:08.8]} 45... Rxd5 {[%clk 0:01:48.7]} 46.
Bxb6 {[%clk 0:00:10.1]} 46... Rd3 {[%clk 0:01:50.3]} 47. Rb2 {[%clk 0:00:09.1]}
47... e4 {[%clk 0:01:50.6]} 48. fxe4 {[%clk 0:00:11]} 48... fxe4 {[%clk
0:01:52.5]} 49. Bf2 {[%clk 0:00:09.3]} 49... e3 {[%clk 0:01:53.5]} 50. Be1
{[%clk 0:00:10.7]} 50... Kf5 {[%clk 0:01:53.7]} 51. Kf3 {[%clk 0:00:11]} 51...
Ke5 {[%clk 0:01:53.6]} 52. b5 {[%clk 0:00:11.9]} 52... Kd6 {[%clk 0:01:54.3]}
53. b6 {[%clk 0:00:12.9]} 53... Kc6 {[%clk 0:01:55.6]} 54. b7 {[%clk 0:00:14.1]}
54... e2+ {[%clk 0:01:57.2]} 55. Kxe2 {[%clk 0:00:15]} 1-0

[Event "*** Titled Tuesday Blitz"]
[Site "Chess.com"]
[Date "2019.08.06"]
[Round "10"]
[White "Zubrrr"]
[Black "BlitzWizard04"]
[Result "1/2-1/2"]
[WhiteElo "2686"]
[BlackElo "2515"]
[TimeControl "180+2"]
[EndTime "15:23:11 PDT"]
[Termination "Game drawn by repetition"]

1. c4 {[%clk 0:02:55.9]} 1... Nf6 {[%clk 0:02:54]} 2. g3 {[%clk 0:02:53.4]} 2...
h5 {[%clk 0:02:52.1]} 3. h3 {[%clk 0:02:53.1]} 3... d6 {[%clk 0:02:50.2]} 4. Bg2
{[%clk 0:02:53.6]} 4... e5 {[%clk 0:02:50.6]} 5. Nc3 {[%clk 0:02:54.2]} 5... Nc6
{[%clk 0:02:50.1]} 6. Nf3 {[%clk 0:02:54.9]} 6... Bf5 {[%clk 0:02:46.8]} 7. d4
{[%clk 0:02:47]} 7... Qd7 {[%clk 0:02:21.6]} 8. dxe5 {[%clk 0:02:47.5]} 8...
dxe5 {[%clk 0:02:23.5]} 9. Qxd7+ {[%clk 0:02:47.3]} 9... Nxd7 {[%clk 0:02:22.7]}
10. Be3 {[%clk 0:01:56.1]} 10... f6 {[%clk 0:02:21.4]} 11. O-O-O {[%clk
0:01:54.3]} 11... O-O-O {[%clk 0:02:21.7]} 12. Nh4 {[%clk 0:01:51]} 12... Be6
{[%clk 0:02:17.2]} 13. Ng6 {[%clk 0:01:50.7]} 13... Rg8 {[%clk 0:02:13.5]} 14.
Bd5 {[%clk 0:01:45.9]} 14... Bxd5 {[%clk 0:02:08.3]} 15. Nxd5 {[%clk 0:01:47.8]}
15... Bd6 {[%clk 0:01:45.1]} 16. f3 {[%clk 0:01:03.1]} 16... Rge8 {[%clk
0:01:37.3]} 17. g4 {[%clk 0:01:03.2]} 17... hxg4 {[%clk 0:01:34.3]} 18. hxg4
{[%clk 0:01:05.1]} 18... Nf8 {[%clk 0:01:24.4]} 19. Nxf8 {[%clk 0:01:01.4]}
19... Bxf8 {[%clk 0:01:26.3]} 20. Rh7 {[%clk 0:00:59.7]} 20... b6 {[%clk
0:01:17.8]} 21. Kc2 {[%clk 0:00:53.2]} 21... Ne7 {[%clk 0:01:12.1]} 22. Nxe7+
{[%clk 0:00:47.6]} 22... Rxe7 {[%clk 0:01:14]} 23. Rxd8+ {[%clk 0:00:47.7]}
23... Kxd8 {[%clk 0:01:15.9]} 24. g5 {[%clk 0:00:20.5]} 24... f5 {[%clk
0:01:13.2]} 25. g6 {[%clk 0:00:19.7]} 25... Re6 {[%clk 0:01:11]} 26. Rh5 {[%clk
0:00:20.7]} 26... f4 {[%clk 0:01:08.9]} 27. Bd2 {[%clk 0:00:19.9]} 27... Bd6
{[%clk 0:01:08.4]} 28. Rg5 {[%clk 0:00:19.5]} 28... Ke7 {[%clk 0:01:08.7]} 29.
Bc3 {[%clk 0:00:19.9]} 29... Kf6 {[%clk 0:01:08.8]} 30. Rg2 {[%clk 0:00:17.3]}
30... Kf5 {[%clk 0:01:10]} 31. Kd3 {[%clk 0:00:18.6]} 31... Rxg6 {[%clk
0:01:10.1]} 32. Rxg6 {[%clk 0:00:19.5]} 32... Kxg6 {[%clk 0:01:12]} 33. Ke4
{[%clk 0:00:21.4]} 33... Kf6 {[%clk 0:01:12]} 34. b4 {[%clk 0:00:21.9]} 34... c6
{[%clk 0:01:08.9]} 35. b5 {[%clk 0:00:20.7]} 35... cxb5 {[%clk 0:01:07.9]} 36.
cxb5 {[%clk 0:00:22.6]} 36... Ke6 {[%clk 0:01:09.1]} 37. a4 {[%clk 0:00:23.1]}
37... g6 {[%clk 0:00:59.7]} 38. Bb2 {[%clk 0:00:24]} 38... g5 {[%clk 0:00:45.8]}
39. Bc3 {[%clk 0:00:24.8]} 39... Bb8 {[%clk 0:00:32.7]} 40. Bb2 {[%clk
0:00:25.3]} 40... Bd6 {[%clk 0:00:33.2]} 41. Bc3 {[%clk 0:00:26.2]} 41... Bb8
{[%clk 0:00:34.8]} 42. Bb2 {[%clk 0:00:27.3]} 42... Bd6 {[%clk 0:00:35.7]}
1/2-1/2

[Event "*** Titled Tuesday Blitz"]
[Site "Chess.com"]
[Date "2019.08.06"]
[Round "10"]
[White "NTBT_DHS"]
[Black "RegZryt"]
[Result "1-0"]
[WhiteElo "2656"]
[BlackElo "2603"]
[TimeControl "180+2"]
[EndTime "15:23:12 PDT"]
[Termination "NTBT_DHS won by resignation"]

1. d4 {[%clk 0:03:01.9]} 1... d5 {[%clk 0:03:00.1]} 2. c4 {[%clk 0:03:02.8]}
2... e6 {[%clk 0:03:01.1]} 3. Nf3 {[%clk 0:03:03.9]} 3... Nf6 {[%clk 0:03:02.3]}
4. g3 {[%clk 0:03:05]} 4... Be7 {[%clk 0:03:03.2]} 5. Bg2 {[%clk 0:03:06.9]}
5... O-O {[%clk 0:03:05.1]} 6. O-O {[%clk 0:03:08.7]} 6... dxc4 {[%clk
0:03:06.8]} 7. Qc2 {[%clk 0:03:10.1]} 7... b6 {[%clk 0:03:08]} 8. a4 {[%clk
0:03:11.6]} 8... Bb7 {[%clk 0:03:03.5]} 9. Na3 {[%clk 0:03:12.2]} 9... Nbd7
{[%clk 0:02:57]} 10. Nxc4 {[%clk 0:03:11.2]} 10... c5 {[%clk 0:02:58.4]} 11.
dxc5 {[%clk 0:03:07.9]} 11... Nxc5 {[%clk 0:02:59.2]} 12. Rd1 {[%clk 0:03:07.7]}
12... Qc8 {[%clk 0:03:00.1]} 13. Nd6 {[%clk 0:03:06.8]} 13... Bxd6 {[%clk
0:03:00.9]} 14. Rxd6 {[%clk 0:03:08.7]} 14... Nce4 {[%clk 0:02:54.4]} 15. Qxc8
{[%clk 0:03:05.2]} 15... Raxc8 {[%clk 0:02:56.3]} 16. Rd1 {[%clk 0:03:02.1]}
16... Ba6 {[%clk 0:02:56.8]} 17. Nd4 {[%clk 0:02:55.9]} 17... e5 {[%clk
0:02:55.5]} 18. Nb5 {[%clk 0:02:56.4]} 18... Rc2 {[%clk 0:02:51.4]} 19. Bf3
{[%clk 0:02:26.5]} 19... Nc5 {[%clk 0:02:40.6]} 20. Bg5 {[%clk 0:02:15.3]} 20...
e4 {[%clk 0:02:31.9]} 21. Bg2 {[%clk 0:02:15.5]} 21... Rxb2 {[%clk 0:02:29.6]}
22. Bxf6 {[%clk 0:02:15.1]} 22... gxf6 {[%clk 0:02:29.9]} 23. e3 {[%clk
0:02:03.9]} 23... Bxb5 {[%clk 0:01:11.1]} 24. axb5 {[%clk 0:02:03.7]} 24... Rxb5
{[%clk 0:01:13]} 25. Rxa7 {[%clk 0:02:03.2]} 25... Rb2 {[%clk 0:01:12.3]} 26.
Rd6 {[%clk 0:01:51]} 26... Rb1+ {[%clk 0:01:09.1]} 27. Bf1 {[%clk 0:01:51.7]}
27... Ne6 {[%clk 0:01:03.3]} 28. Kg2 {[%clk 0:01:46.2]} 28... b5 {[%clk
0:01:01.9]} 29. h4 {[%clk 0:01:45.4]} 29... Rb8 {[%clk 0:00:59.8]} 30. Rdd7
{[%clk 0:01:45.7]} 30... Nd8 {[%clk 0:00:58.7]} 31. Be2 {[%clk 0:01:41.6]} 31...
Nc6 {[%clk 0:00:49]} 32. Rac7 {[%clk 0:01:35.4]} 32... Ne5 {[%clk 0:00:50]} 33.
Rd6 {[%clk 0:01:32.1]} 33... b4 {[%clk 0:00:46.6]} 34. Rxf6 {[%clk 0:01:31.6]}
34... b3 {[%clk 0:00:48.1]} 35. Bh5 {[%clk 0:01:28.4]} 35... b2 {[%clk
0:00:35.5]} 36. Bxf7+ {[%clk 0:01:29.3]} 36... Kg7 {[%clk 0:00:32.5]} 37. Ba2+
{[%clk 0:01:21.7]} 37... Kxf6 {[%clk 0:00:31]} 38. Bxb1 {[%clk 0:01:23.6]} 38...
h5 {[%clk 0:00:21.8]} 39. Rh7 {[%clk 0:01:16]} 39... Nd3 {[%clk 0:00:20.2]} 40.
Rxh5 {[%clk 0:01:14]} 40... Ke6 {[%clk 0:00:21]} 41. Ra5 {[%clk 0:01:09.9]}
41... Rf8 {[%clk 0:00:21.5]} 42. f4 {[%clk 0:01:08.9]} 42... exf3+ {[%clk
0:00:21.9]} 43. Kf1 {[%clk 0:01:10.3]} 43... Rc8 {[%clk 0:00:19.8]} 44. Bxd3
{[%clk 0:01:10.2]} 44... Rc3 {[%clk 0:00:20.6]} 45. Bh7 {[%clk 0:01:00.6]} 45...
Rxe3 {[%clk 0:00:18.9]} 46. Rb5 {[%clk 0:01:01.4]} 46... f2 {[%clk 0:00:18.6]}
47. Kxf2 {[%clk 0:01:02.3]} 1-0

[Event "*** Titled Tuesday Blitz"]
[Site "Chess.com"]
[Date "2019.08.06"]
[Round "10"]
[White "Blazinq"]
[Black "wonderfultime"]
[Result "0-1"]
[WhiteElo "2628"]
[BlackElo "2858"]
[TimeControl "180+2"]
[EndTime "15:23:13 PDT"]
[Termination "wonderfultime won by resignation"]

1. e4 {[%clk 0:03:01.9]} 1... c5 {[%clk 0:02:59.4]} 2. Nf3 {[%clk 0:03:02.7]}
2... Nf6 {[%clk 0:03:00.9]} 3. e5 {[%clk 0:03:02.8]} 3... Nd5 {[%clk 0:03:02.4]}
4. Nc3 {[%clk 0:03:04.4]} 4... e6 {[%clk 0:03:02.2]} 5. Bc4 {[%clk 0:02:50.1]}
5... Nb6 {[%clk 0:02:54.7]} 6. Be2 {[%clk 0:02:37.9]} 6... Nc6 {[%clk
0:02:54.7]} 7. O-O {[%clk 0:02:37.7]} 7... d6 {[%clk 0:02:56]} 8. exd6 {[%clk
0:02:36.3]} 8... Bxd6 {[%clk 0:02:57.9]} 9. Ne4 {[%clk 0:01:35.4]} 9... Be7
{[%clk 0:02:58.6]} 10. c3 {[%clk 0:01:36.5]} 10... O-O {[%clk 0:02:58.2]} 11. d3
{[%clk 0:01:37.3]} 11... Nd5 {[%clk 0:02:49.6]} 12. d4 {[%clk 0:01:37.1]} 12...
cxd4 {[%clk 0:02:46.5]} 13. Nxd4 {[%clk 0:01:39]} 13... Bd7 {[%clk 0:02:48]} 14.
Bf3 {[%clk 0:01:36]} 14... Rc8 {[%clk 0:02:47.2]} 15. g3 {[%clk 0:01:32.7]}
15... a6 {[%clk 0:02:32.4]} 16. Bg2 {[%clk 0:01:32]} 16... Qc7 {[%clk
0:02:33.9]} 17. Re1 {[%clk 0:01:24.9]} 17... Rfd8 {[%clk 0:02:33.6]} 18. Nxc6
{[%clk 0:01:10.2]} 18... Bxc6 {[%clk 0:02:33.7]} 19. Qe2 {[%clk 0:00:55.4]}
19... h6 {[%clk 0:02:30.2]} 20. a3 {[%clk 0:00:54.3]} 20... b5 {[%clk
0:02:27.3]} 21. c4 {[%clk 0:00:40.4]} 21... bxc4 {[%clk 0:02:26.6]} 22. Qxc4
{[%clk 0:00:42.3]} 22... Qb7 {[%clk 0:02:23.4]} 23. Qe2 {[%clk 0:00:39.7]} 23...
a5 {[%clk 0:02:08.5]} 24. Qg4 {[%clk 0:00:30.7]} 24... f5 {[%clk 0:01:47.4]} 25.
Qg6 {[%clk 0:00:31.4]} 25... fxe4 {[%clk 0:01:48.7]} 26. Qxe6+ {[%clk
0:00:14.2]} 26... Kh8 {[%clk 0:01:48.6]} 27. Bxh6 {[%clk 0:00:14.3]} 27... Nf6
{[%clk 0:01:34.3]} 28. Be3 {[%clk 0:00:08.3]} 28... Qd7 {[%clk 0:01:33.1]} 29.
Qf7 {[%clk 0:00:08.9]} 29... Bd5 {[%clk 0:01:24.6]} 30. Qg6 {[%clk 0:00:09.9]}
30... Qe6 {[%clk 0:01:22.6]} 31. Rad1 {[%clk 0:00:06.1]} 31... Qf7 {[%clk
0:01:19.8]} 32. Qf5 {[%clk 0:00:03.9]} 32... Be6 {[%clk 0:01:21.1]} 33. Qxa5
{[%clk 0:00:04.9]} 33... Ng4 {[%clk 0:01:18.3]} 34. Bf4 {[%clk 0:00:04.1]} 34...
Rxd1 {[%clk 0:01:15.7]} 35. Rxd1 {[%clk 0:00:06]} 35... Bc5 {[%clk 0:01:17.3]}
36. Rd8+ {[%clk 0:00:05.9]} 36... Rxd8 {[%clk 0:01:12.5]} 37. Qxd8+ {[%clk
0:00:07.8]} 37... Kh7 {[%clk 0:01:13.6]} 38. Bxe4+ {[%clk 0:00:08.7]} 38... g6
{[%clk 0:01:10.8]} 39. Qh4+ {[%clk 0:00:07.9]} 39... Kg7 {[%clk 0:01:11.7]} 40.
h3 {[%clk 0:00:08.6]} 40... Be7 {[%clk 0:01:07.9]} 41. Bh6+ {[%clk 0:00:02.5]}
41... Nxh6 {[%clk 0:01:07.9]} 42. Qf4 {[%clk 0:00:04.1]} 42... Qxf4 {[%clk
0:01:08.9]} 43. gxf4 {[%clk 0:00:06]} 43... Bxh3 {[%clk 0:01:09.2]} 44. f3
{[%clk 0:00:07.1]} 44... Bd6 {[%clk 0:01:09.9]} 45. Kf2 {[%clk 0:00:07.1]} 45...
Bxf4 {[%clk 0:01:11.1]} 46. b4 {[%clk 0:00:08.5]} 46... Bd7 {[%clk 0:01:12.7]}
47. Ke2 {[%clk 0:00:09]} 47... Bc1 {[%clk 0:01:13.8]} 0-1

[Event "*** Titled Tuesday Blitz"]
[Site "Chess.com"]
[Date "2019.08.06"]
[Round "10"]
[White "Gareth-Bale11"]
[Black "FrenchMonster2002"]
[Result "1-0"]
[WhiteElo "2736"]
[BlackElo "2531"]
[TimeControl "180+2"]
[EndTime "15:23:14 PDT"]
[Termination "Gareth-Bale11 won by resignation"]

1. g3 {[%clk 0:03:00.8]} 1... g6 {[%clk 0:03:00.3]} 2. Bg2 {[%clk 0:03:01.6]}
2... Bg7 {[%clk 0:03:01.7]} 3. c4 {[%clk 0:03:02.9]} 3... Nf6 {[%clk 0:03:00.2]}
4. Nc3 {[%clk 0:03:04.2]} 4... O-O {[%clk 0:03:00.9]} 5. d4 {[%clk 0:03:03.6]}
5... d6 {[%clk 0:03:02.2]} 6. Nf3 {[%clk 0:03:04.9]} 6... Nc6 {[%clk 0:03:03.6]}
7. O-O {[%clk 0:03:05.1]} 7... e5 {[%clk 0:03:05.1]} 8. dxe5 {[%clk 0:03:07]}
8... Nxe5 {[%clk 0:03:06.6]} 9. Nxe5 {[%clk 0:03:07.7]} 9... dxe5 {[%clk
0:03:08.5]} 10. Qxd8 {[%clk 0:03:08.3]} 10... Rxd8 {[%clk 0:03:10.4]} 11. Bg5
{[%clk 0:03:09.9]} 11... Rd4 {[%clk 0:03:11.1]} 12. b3 {[%clk 0:02:31.5]} 12...
c6 {[%clk 0:03:10.2]} 13. Na4 {[%clk 0:02:23]} 13... Bf5 {[%clk 0:02:22.5]} 14.
Nc5 {[%clk 0:01:53.2]} 14... b6 {[%clk 0:02:06.1]} 15. e3 {[%clk 0:01:22.7]}
15... Rd6 {[%clk 0:01:07.2]} 16. Nb7 {[%clk 0:01:08.7]} 16... Re6 {[%clk
0:01:07.2]} 17. Rad1 {[%clk 0:00:59.1]} 17... e4 {[%clk 0:00:47.4]} 18. Nd8
{[%clk 0:00:54.2]} 18... Re5 {[%clk 0:00:21.6]} 19. Nxc6 {[%clk 0:00:54.3]}
19... Rc5 {[%clk 0:00:23.3]} 20. Ne7+ {[%clk 0:00:54.8]} 20... Kf8 {[%clk
0:00:24.6]} 21. Nxf5 {[%clk 0:00:56.7]} 21... gxf5 {[%clk 0:00:19.9]} 22. Rd6
{[%clk 0:00:57.5]} 22... Ke7 {[%clk 0:00:17.1]} 23. Rfd1 {[%clk 0:00:58.5]}
23... Rc7 {[%clk 0:00:11.5]} 24. Bh3 {[%clk 0:00:58.5]} 24... h6 {[%clk
0:00:08.2]} 25. Bxf6+ {[%clk 0:00:44.7]} 25... Bxf6 {[%clk 0:00:09.4]} 26. Bxf5
{[%clk 0:00:46.4]} 26... Be5 {[%clk 0:00:08]} 27. Rd7+ {[%clk 0:00:46.8]} 27...
Rxd7 {[%clk 0:00:09.3]} 28. Rxd7+ {[%clk 0:00:48.6]} 28... Ke8 {[%clk
0:00:04.9]} 29. Rd5 {[%clk 0:00:48.8]} 29... f6 {[%clk 0:00:05.3]} 30. Bxe4
{[%clk 0:00:47]} 30... Rd8 {[%clk 0:00:07]} 31. f4 {[%clk 0:00:47.8]} 31... Bc3
{[%clk 0:00:02.6]} 32. Kf2 {[%clk 0:00:46.8]} 32... Ke7 {[%clk 0:00:03.4]} 33.
Kf3 {[%clk 0:00:47.8]} 33... Rxd5 {[%clk 0:00:02.9]} 34. Bxd5 {[%clk 0:00:44.3]}
34... f5 {[%clk 0:00:03.6]} 35. h3 {[%clk 0:00:43.6]} 35... Kf6 {[%clk
0:00:03.1]} 36. g4 {[%clk 0:00:44.5]} 36... Bd2 {[%clk 0:00:03.3]} 37. e4 {[%clk
0:00:44.4]} 37... fxe4+ {[%clk 0:00:04.1]} 38. Kxe4 {[%clk 0:00:40.3]} 38... Bc1
{[%clk 0:00:05.4]} 39. h4 {[%clk 0:00:41.2]} 39... Bd2 {[%clk 0:00:06.3]} 40.
g5+ {[%clk 0:00:42.5]} 40... hxg5 {[%clk 0:00:08.2]} 41. hxg5+ {[%clk
0:00:44.4]} 41... Kg7 {[%clk 0:00:09.9]} 42. Kf5 {[%clk 0:00:45]} 1-0